bitfinex/quotes_SOLUSD_20250619
["timestamp","ask_amount","ask_price","bid_price","bid_amount"]
[1750357512947,20.9417717,145.59,145.57,6.86937901]
[1750357513108,11.11693997,145.58,145.57,6.86937901]
[1750357513425,11.11693997,145.58,145.57,94.56937901]
[1750357514325,9.82600803,145.61,145.57,94.56937901]
[1750357514524,11.11693997,145.58,145.57,94.56937901]
[1750357515118,15.79683005,145.58,145.57,94.56937901]
[1750357516017,11.11693997,145.58,145.57,94.56937901]
[1750357516523,9.82611753,145.6,145.57,94.56937901]
[1750357516723,11.11693997,145.58,145.57,94.56937901]
[1750357517031,10.88066897,145.58,145.57,94.56937901]
[1750357517813,6.42740692,145.62,145.57,111.74324725]
[1750357518129,8.37601986,145.65,145.59,11.11693997]
[1750357518130,11.11693997,145.63,145.59,11.11693997]
[1750357518447,9.82378004,145.62,145.58,11.11693997]
[1750357518620,9.82378004,145.61,145.59,6.86860361]
[1750357518822,11.11693997,145.62,145.59,6.86860361]
[1750357519027,9.82627098,145.61,145.59,6.86860361]
[1750357519234,11.11693997,145.62,145.59,6.86860361]
[1750357519422,9.82556814,145.61,145.59,6.86860361]
[1750357519739,11.11693997,145.62,145.59,6.86860361]
[1750357519911,9.82545029,145.61,145.59,6.86860361]
[1750357520233,11.11693997,145.62,145.59,6.86860361]
[1750357520429,9.82547853,145.61,145.59,6.86860361]
[1750357520630,11.11693997,145.62,145.59,6.86860361]
[1750357520934,20.94233155,145.61,145.59,6.86860361]
[1750357521105,20.94248016,145.6,145.59,6.86860361]
[1750357521310,15.79744795,145.6,145.59,6.86860361]
[1750357521629,20.94248016,145.6,145.59,6.86860361]
[1750357522235,20.94248016,145.6,145.57,87.7]
[1750357522410,11.11693997,145.58,145.55,94.57033902]
[1750357522605,11.11693997,145.56,145.53,110.87858372]
[1750357522935,11.11693997,145.56,145.54,6.8709633]
[1750357523738,11.11693997,145.55,145.54,6.8709633]
[1750357524732,11.11693997,145.55,145.52,6.87190764]
[1750357526937,5.14281554,145.57,145.52,6.87190764]
[1750357527141,11.11693997,145.55,145.52,6.87190764]
[1750357528522,11.11693997,145.55,145.52,94.57190764]
[1750357542044,11.11693997,145.53,145.52,94.57190764]
[1750357542549,11.11693997,145.54,145.52,94.57190764]
[1750357543954,11.11693997,145.53,145.52,87.7]
[1750357544435,11.11693997,145.53,145.51,94.57217089]
[1750357544750,11.11693997,145.52,145.51,94.57217089]
[1750357545047,37.11693997,145.53,145.51,94.57217089]
[1750357549047,26.0,145.53,145.51,94.57217089]
[1750357554248,37.11693997,145.53,145.51,94.57217089]
[1750357554843,11.11693997,145.52,145.51,87.7]
[1750357555045,26.0,145.49,145.46,87.7]
[1750357555266,26.0,145.45,145.42,6.8766332]
[1750357555446,11.11693997,145.43,145.4,6.87757909]
[1750357555644,26.0,145.43,145.4,35.18846679]
[1750357555847,27.614,145.48,145.42,11.11693997]
[1750357556063,31.13328519,145.5,145.47,11.11693997]
[1750357556263,26.0,145.5,145.47,11.11693997]
[1750357557244,26.0,145.5,145.48,6.87379708]
[1750357557659,37.11693997,145.5,145.48,6.87379708]
[1750357558256,26.0,145.5,145.48,6.87379708]
[1750357558455,1.614,145.52,145.48,35.17522976]
[1750357558763,27.614,145.52,145.48,35.17522976]
[1750357558960,38.73093997,145.52,145.48,35.17522976]
[1750357559265,74.20765788,145.52,145.48,35.17522976]
[1750357559458,63.09071791,145.52,145.48,35.17522976]
[1750357559663,61.47671791,145.52,145.49,11.11693997]
[1750357560067,72.59365788,145.52,145.48,35.17522976]
[1750357560258,72.59365788,145.52,145.48,122.87522976]
[1750357560569,31.61391791,145.51,145.48,122.87522976]
[1750357561570,31.61391791,145.51,145.5,17.9897922]
[1750357562472,31.61391791,145.51,145.5,6.87285223]
[1750357562955,42.73085788,145.51,145.5,6.87285223]
[1750357563472,42.73085788,145.51,145.48,24.05828979]
[1750357564548,11.11693997,145.49,145.48,6.87379708]
[1750357564976,11.11693997,145.49,145.45,6.87521485]
[1750357565159,33.16031791,145.51,145.45,6.87521485]
[1750357565365,11.11693997,145.48,145.45,6.87521485]
[1750357565665,11.11693997,145.48,145.45,24.06325197]
[1750357568377,11.11693997,145.47,145.45,24.06325197]
[1750357569460,11.11693997,145.46,145.43,24.06656123]
[1750357569664,40.0327358,145.51,145.45,11.11693997]
[1750357569665,33.16031791,145.51,145.45,11.11693997]
[1750357569876,44.27725788,145.51,145.46,11.11693997]
[1750357570076,44.27725788,145.51,145.47,11.11693997]
[1750357570769,33.16031791,145.51,145.47,11.11693997]
[1750357571266,33.16031791,145.51,145.48,24.05828979]
[1750357571466,44.27725788,145.51,145.48,24.05828979]
[1750357575385,11.11693997,145.5,145.48,24.05828979]
[1750357575770,11.11693997,145.5,145.48,111.75828979]
[1750357576074,44.27725788,145.51,145.48,111.75828979]
[1750357582586,11.11693997,145.5,145.48,111.75828979]
[1750357587421,11.11693997,145.49,145.48,94.57379708]
[1750357590183,33.16031791,145.51,145.48,94.57379708]
[1750357590388,11.11693997,145.49,145.48,94.57379708]
[1750357590609,33.16031791,145.51,145.48,94.57379708]
[1750357590810,42.73085788,145.51,145.48,94.57379708]
[1750357591027,31.61391791,145.51,145.48,111.75828979]
[1750357591231,42.73085788,145.51,145.48,111.75828979]
[1750357592028,11.11693997,145.5,145.48,111.75828979]
[1750357592909,42.73085788,145.51,145.48,111.75828979]
[1750357595620,42.73085788,145.51,145.48,94.57379708]
[1750357595621,11.11693997,145.5,145.48,94.57379708]
[1750357595790,11.11693997,145.49,145.48,94.57379708]
[1750357598615,15.84343609,145.49,145.48,94.57379708]
[1750357598831,15.84810821,145.49,145.48,94.57379708]
[1750357599730,15.8483175,145.49,145.48,94.57379708]
[1750357600302,16.26432331,145.5,145.48,94.57379708]
[1750357600514,11.11693997,145.5,145.48,94.57379708]
[1750357600719,42.73085788,145.51,145.48,94.57379708]
[1750357600890,4.73083253,145.5,145.48,94.57379708]
[1750357601093,42.73085788,145.51,145.48,94.57379708]
[1750357601292,4.73083251,145.5,145.48,94.57379708]
[1750357601511,42.73085788,145.51,145.48,94.57379708]
[1750357601696,4.73146127,145.5,145.48,111.75828979]
[1750357601905,42.73085788,145.51,145.48,111.75828979]
[1750357602221,4.73177813,145.5,145.48,111.75828979]
[1750357602413,42.73085788,145.51,145.48,111.75828979]
[1750357602634,4.73171294,145.5,145.48,111.75828979]
[1750357602837,42.73085788,145.51,145.48,111.75828979]
[1750357603019,4.73151583,145.5,145.48,111.75828979]
[1750357603209,42.73085788,145.51,145.48,111.75828979]
[1750357603535,15.84849157,145.5,145.48,111.75828979]
[1750357603724,11.11693997,145.5,145.48,111.75828979]
[1750357608828,11.11693997,145.5,145.48,94.57379708]
[1750357609236,9.88409555,145.49,145.48,94.57379708]
[1750357609531,21.00103552,145.49,145.48,94.57379708]
[1750357611418,16.27077615,145.49,145.48,94.57379708]
[1750357616805,5.15383618,145.49,145.48,94.57379708]
[1750357617611,11.11693997,145.5,145.48,94.57379708]
[1750357625454,26.0,145.52,145.48,122.87522976]
[1750357625660,5.15347738,145.51,145.48,122.87522976]
[1750357625966,37.11693997,145.52,145.48,122.87522976]
[1750357626138,16.27058876,145.51,145.48,111.75828979]
[1750357626333,11.11693997,145.51,145.48,111.75828979]
[1750357627138,37.11693997,145.52,145.48,122.87522976]
[1750357627352,16.27042363,145.51,145.48,111.75828979]
[1750357627559,11.11693997,145.51,145.48,111.75828979]
[1750357627732,37.11693997,145.52,145.48,111.75828979]
[1750357628051,16.27022106,145.51,145.48,111.75828979]
[1750357628257,11.11693997,145.51,145.48,111.75828979]
[1750357629157,5.15331581,145.5,145.48,111.75828979]
[1750357629351,11.11693997,145.51,145.48,111.75828979]
[1750357629559,5.15332221,145.5,145.48,111.75828979]
[1750357629734,11.11693997,145.51,145.48,111.75828979]
[1750357629936,5.15332168,145.5,145.48,111.75828979]
[1750357630234,11.11693997,145.51,145.48,111.75828979]
[1750357630435,5.15332783,145.5,145.48,111.75828979]
[1750357630637,11.11693997,145.51,145.48,111.75828979]
[1750357630835,5.1533273,145.5,145.48,111.75828979]
[1750357631145,26.0,145.52,145.48,111.75828979]
[1750357631346,16.27026673,145.51,145.48,111.75828979]
[1750357631537,5.15332676,145.5,145.48,111.75828979]
[1750357631739,11.11693997,145.51,145.48,111.75828979]
[1750357631942,5.1533318,145.5,145.48,111.75828979]
[1750357632143,11.11693997,145.51,145.48,111.75828979]
[1750357632351,5.15330275,145.5,145.48,111.75828979]
[1750357632566,11.11693997,145.51,145.48,111.75828979]
[1750357632744,5.15329177,145.5,145.48,111.75828979]
[1750357632947,11.11693997,145.51,145.48,111.75828979]
[1750357633243,5.15329231,145.5,145.48,111.75828979]
[1750357633430,37.11693997,145.52,145.48,122.87522976]
[1750357633635,5.15255526,145.51,145.48,122.87522976]
[1750357633830,37.11693997,145.52,145.48,122.87522976]
[1750357634055,16.26990794,145.51,145.48,111.75828979]
[1750357634248,11.11693997,145.51,145.48,111.75828979]
[1750357634960,7.14909428,145.51,145.48,111.75828979]
[1750357635261,5.1530972,145.5,145.48,111.75828979]
[1750357635474,7.14909428,145.51,145.48,111.75828979]
[1750357635766,5.15317593,145.5,145.48,111.75828979]
[1750357635947,7.14909428,145.49,145.48,94.57379708]
[1750357636289,12.30248384,145.49,145.48,94.57379708]
[1750357638838,16.32750452,145.49,145.48,94.57379708]
[1750357643809,16.32750452,145.49,145.48,87.7]
[1750357643958,42.32750452,145.49,145.48,87.7]
[1750357645670,42.32750452,145.49,145.48,94.57379708]
[1750357646873,42.32750452,145.49,145.46,6.87474219]
[1750357647169,5.15338956,145.48,145.46,6.87474219]
[1750357647369,37.17411496,145.49,145.46,94.57474219]
[1750357647774,26.0,145.49,145.46,94.57474219]
[1750357647980,5.15228799,145.48,145.46,94.57474219]
[1750357648281,37.17411496,145.49,145.46,94.57474219]
[1750357648461,5.15211079,145.48,145.46,94.57474219]
[1750357648773,37.17411496,145.49,145.46,94.57474219]
[1750357648965,5.15208169,145.48,145.46,94.57474219]
[1750357649173,37.17411496,145.49,145.46,94.57474219]
[1750357649361,11.17411496,145.51,145.47,11.17411496]
[1750357649557,5.15176632,145.5,145.47,98.87411496]
[1750357649747,6.41848568,145.53,145.49,11.17411496]
[1750357649953,5.15102348,145.52,145.49,11.17411496]
[1750357650267,26.0,145.52,145.49,11.17411496]
[1750357650474,12.39848568,145.56,145.51,11.17411496]
[1750357650661,31.14983594,145.55,145.51,98.87411496]
[1750357650855,5.14983594,145.54,145.51,98.87411496]
[1750357651167,5.14983594,145.53,145.51,98.87411496]
[1750357651374,5.14793936,145.54,145.52,6.87190764]
[1750357651570,11.17411496,145.55,145.52,6.87190764]
[1750357651754,5.14791848,145.54,145.52,6.87190764]
[1750357652078,37.17411496,145.55,145.52,6.87190764]
[1750357652276,5.14791794,145.54,145.52,6.87190764]
[1750357652580,37.17411496,145.55,145.52,6.87190764]
[1750357652774,5.14629215,145.54,145.52,18.0460226]
[1750357652964,26.0,145.55,145.52,35.2257917]
[1750357653152,26.0,145.55,145.53,11.17411496]
[1750357653552,26.0,145.55,145.52,122.9257917]
[1750357655479,31.14130726,145.55,145.52,122.9257917]
[1750357656296,42.31542222,145.55,145.52,111.75167674]
[1750357656576,11.17411496,145.53,145.52,94.57190764]
[1750357659798,23.85562992,145.53,145.47,87.7]
[1750357660091,11.17411496,145.49,145.47,87.7]
[1750357661071,37.17411496,145.5,145.47,87.7]
[1750357661461,37.17411496,145.5,145.48,6.87379708]
[1750357663970,11.17411496,145.51,145.48,24.05828979]
[1750357664169,11.17411496,145.53,145.49,11.17411496]
[1750357664383,16.31489422,145.53,145.49,98.87411496]
[1750357664611,11.17411496,145.53,145.49,98.87411496]
[1750357665307,37.17411496,145.53,145.5,6.87285223]
[1750357667481,37.17411496,145.53,145.5,94.57285223]
[1750357667682,37.17411496,145.53,145.5,111.75498281]
[1750357668309,26.0,145.53,145.5,122.92909777]
[1750357670183,16.31304185,145.55,145.51,11.17411496]
[1750357670384,26.0,145.54,145.51,11.17411496]
[1750357671419,26.0,145.53,145.52,6.87190764]
[1750357671711,26.0,145.53,145.52,94.57190764]
[1750357672695,5.13754976,145.54,145.52,87.7]
[1750357672919,11.17411496,145.54,145.52,87.7]
[1750357673098,42.31166472,145.55,145.52,87.7]
[1750357673288,31.13754976,145.55,145.52,87.7]
[1750357673488,31.13754976,145.55,145.53,6.87143544]
[1750357673710,26.0,145.54,145.53,6.87143544]
[1750357676282,26.0,145.54,145.53,94.57143544]
[1750357679495,37.17411496,145.54,145.53,94.57143544]
[1750357680213,26.0,145.54,145.53,94.57143544]
[1750357680414,37.17411496,145.54,145.53,94.57143544]
[1750357680618,26.0,145.54,145.53,94.57143544]
[1750357681500,11.17411496,145.56,145.53,94.57143544]
[1750357681683,26.0,145.57,145.54,11.17411496]
[1750357681884,37.17411496,145.57,145.53,122.924139]
[1750357688839,33.14339591,145.57,145.53,118.89341995]
[1750357689628,7.14339591,145.54,145.53,87.7]
[1750357689933,7.14339591,145.54,145.51,6.8723799]
[1750357690098,7.14339591,145.53,145.51,6.8723799]
[1750357691020,11.1667682,145.53,145.51,6.8723799]
[1750357691326,11.1667682,145.54,145.51,6.8723799]
[1750357693429,26.0,145.55,145.51,35.22009786]
[1750357693722,26.0,145.55,145.52,11.1667682]
[1750357694325,31.14136126,145.55,145.52,11.1667682]
[1750357694633,5.14136126,145.55,145.53,11.1667682]
[1750357694935,5.14136126,145.56,145.54,6.8709633]
[1750357695100,5.14136126,145.56,145.54,94.5709633]
[1750357695299,37.1667682,145.55,145.54,87.7]
[1750357695504,26.0,145.53,145.52,6.87187809]
[1750357695714,37.1667682,145.53,145.52,6.87187809]
[1750357696220,37.1667682,145.53,145.5,6.87285223]
[1750357696530,11.1667682,145.51,145.49,94.57321464]
[1750357696831,11.1667682,145.5,145.49,94.57321464]
[1750357697512,5.14247437,145.52,145.49,94.57321464]
[1750357697714,11.1667682,145.5,145.49,94.57321464]
[1750357698728,26.0,145.53,145.49,94.57321464]
[1750357698905,11.1667682,145.5,145.49,94.57321464]
[1750357699616,11.1667682,145.51,145.49,94.57321464]
[1750357704840,31.14013886,145.53,145.49,94.57321464]
[1750357705015,11.1667682,145.51,145.49,94.57321464]
[1750357708845,26.0,145.49,145.45,94.57498136]
[1750357709018,26.0,145.49,145.41,177.42874886]
[1750357709019,37.1667682,145.46,145.42,6.8766332]
[1750357709218,11.1667682,145.43,145.41,6.87696713]
[1750357709446,11.1667682,145.42,145.41,6.87696713]
[1750357709946,11.1667682,145.42,145.38,6.87852524]
[1750357710246,5.14153413,145.45,145.38,35.24160655]
[1750357710424,11.1667682,145.42,145.38,122.94160655]
[1750357711221,8.0183,145.49,145.41,11.1667682]
[1750357711534,12.7437682,145.49,145.45,11.1667682]
[1750357711912,11.1667682,145.48,145.44,11.1667682]
[1750357713143,11.1667682,145.47,145.43,11.1667682]
[1750357713343,11.1667682,145.46,145.44,6.87568756]
[1750357716244,11.1667682,145.47,145.43,18.04292855]
[1750357717728,11.1667682,145.47,145.43,105.74292855]
[1750357718549,1.577,145.49,145.43,105.74292855]
[1750357718764,11.1667682,145.47,145.43,105.74292855]
[1750357719253,1.577,145.49,145.43,122.93332943]
[1750357719455,11.1667682,145.48,145.44,11.1667682]
[1750357719749,11.1667682,145.47,145.43,122.93332943]
[1750357722632,11.1667682,145.46,145.43,111.76656123]
[1750357723256,11.1667682,145.47,145.43,122.93332943]
[1750357727553,11.1667682,145.47,145.43,111.76656123]
[1750357727760,11.1667682,145.47,145.43,122.93332943]
[1750357728061,1.577,145.49,145.46,11.1667682]
[1750357728241,37.1667682,145.5,145.46,98.8667682]
[1750357728838,26.0,145.5,145.46,98.8667682]
[1750357729039,37.1667682,145.5,145.46,98.8667682]
[1750357730227,11.1667682,145.49,145.47,6.8742696]
[1750357730458,11.1667682,145.48,145.47,6.8742696]
[1750357732358,11.1667682,145.48,145.46,94.57464769]
[1750357732656,37.1667682,145.48,145.46,94.57464769]
[1750357733443,26.0,145.48,145.46,94.57464769]
[1750357734247,37.1667682,145.48,145.46,94.57464769]
[1750357736069,11.1667682,145.47,145.46,87.7]
[1750357736273,11.1667682,145.47,145.46,94.57474219]
[1750357736449,26.0,145.47,145.46,94.57474219]
[1750357737977,26.0,145.48,145.46,94.57474219]
[1750357739075,37.1667682,145.48,145.46,94.57474219]
[1750357742151,37.1667682,145.47,145.46,94.57474219]
[1750357743181,26.0,145.47,145.46,94.57474219]
[1750357743366,37.1667682,145.47,145.46,94.57474219]
[1750357743756,37.1667682,145.47,145.46,87.7]
[1750357744264,66.44123786,145.47,145.38,87.7]
[1750357744464,11.1667682,145.42,145.38,98.8667682]
[1750357744663,11.1667682,145.41,145.39,6.87805213]
[1750357744983,37.1667682,145.42,145.39,6.87805213]
[1750357745478,11.1667682,145.41,145.39,6.87805213]
[1750357745780,11.1667682,145.41,145.38,24.07476503]
[1750357746161,37.1667682,145.42,145.38,35.24153323]
[1750357749073,11.1667682,145.41,145.38,35.24153323]
[1750357749382,26.0,145.42,145.38,24.07476503]
[1750357749685,11.1667682,145.41,145.38,24.07476503]
[1750357750188,11.1667682,145.41,145.38,111.77476503]
[1750357751166,11.1667682,145.4,145.38,111.77476503]
[1750357752301,11.1667682,145.4,145.38,94.57852524]
[1750357752467,11.1667682,145.39,145.37,6.87865682]
[1750357752787,26.0,145.4,145.37,6.87865682]
[1750357752989,25.98393014,145.48,145.4,18.64964886]
[1750357753161,30.73221266,145.48,145.44,11.1667682]
[1750357753360,35.86844208,145.48,145.44,11.1667682]
[1750357753555,26.0,145.45,145.43,11.1667682]
[1750357753786,16.30299762,145.47,145.43,11.1667682]
[1750357753992,11.1667682,145.46,145.43,11.1667682]
[1750357754657,11.1667682,145.47,145.43,11.1667682]
[1750357754857,26.0,145.45,145.43,11.1667682]
[1750357755162,26.0,145.45,145.44,6.87568756]
[1750357758986,30.73221266,145.48,145.44,18.04245576]
[1750357759175,56.73221266,145.48,145.44,105.74245576]
[1750357760176,56.73221266,145.48,145.44,122.93167468]
[1750357761188,56.73221266,145.48,145.44,111.76490648]
[1750357761376,56.73221266,145.48,145.44,122.93167468]
[1750357761889,45.56544446,145.48,145.44,122.93167468]
[1750357762868,56.73221266,145.48,145.44,111.76490648]
[1750357763183,11.1667682,145.47,145.44,111.76490648]
[1750357764899,11.1667682,145.45,145.44,94.57568756]
[1750357765103,37.1667682,145.45,145.44,6.87568756]
[1750357765304,26.0,145.45,145.44,6.87568756]
[1750357766984,26.0,145.45,145.43,18.04292855]
[1750357769196,26.0,145.45,145.43,6.87616035]
[1750357771005,26.0,145.45,145.43,94.57616035]
[1750357771431,16.30581638,145.47,145.43,122.93332943]
[1750357771578,56.73221266,145.48,145.44,11.1667682]
[1750357771778,56.73221266,145.48,145.44,98.8667682]
[1750357771997,56.73221266,145.48,145.44,87.7]
[1750357772300,45.56544446,145.48,145.44,98.8667682]
[1750357772498,45.56544446,145.48,145.45,6.87521485]
[1750357772996,56.73221266,145.48,145.45,24.06325197]
[1750357774004,56.73221266,145.48,145.45,6.87521485]
[1750357774204,11.1667682,145.47,145.45,6.87521485]
[1750357776876,11.1667682,145.47,145.45,94.57521485]
[1750357781399,45.56544446,145.48,145.45,105.74198305]
[1750357781605,19.56544446,145.48,145.46,11.1667682]
[1750357781793,19.56544446,145.48,145.47,11.1667682]
[1750357781986,19.56544446,145.48,145.47,98.8667682]
[1750357782898,19.56544446,145.48,145.47,105.7410378]
[1750357784413,30.73221266,145.48,145.44,87.7]
[1750357784593,30.73221266,145.48,145.45,6.87521485]
[1750357786817,26.0,145.46,145.45,6.87521485]
[1750357787597,37.1667682,145.46,145.44,94.57564568]
[1750357787796,19.56544446,145.48,145.44,94.57564568]
[1750357787797,37.1667682,145.45,145.44,94.57564568]
[1750357788001,19.56544446,145.48,145.44,18.04241388]
[1750357788319,19.56544446,145.48,145.46,11.1667682]
[1750357788490,19.56544446,145.48,145.47,6.8742696]
[1750357789107,19.56544446,145.48,145.47,18.0410378]
[1750357789919,19.56544446,145.48,145.47,6.8742696]
[1750357791224,19.56544446,145.48,145.47,18.0410378]
[1750357791723,19.56544446,145.48,145.47,105.7410378]
[1750357792502,19.56544446,145.48,145.47,94.5742696]
[1750357794323,19.56544446,145.48,145.47,105.7410378]
[1750357798513,19.56544446,145.48,145.47,94.5742696]
[1750357800246,19.56544446,145.48,145.47,124.39068666]
[1750357801529,11.1667682,145.56,145.47,136.74268666]
[1750357801729,6.66175867,145.58,145.54,11.1667682]
[1750357802034,5.13915867,145.59,145.58,6.86907542]
[1750357802228,23.29253277,145.6,145.58,18.03584362]
[1750357802409,23.29253277,145.6,145.58,6.86907542]
[1750357803029,23.29253277,145.6,145.58,18.03584362]
[1750357803203,23.29253277,145.6,145.58,6.86907542]
[1750357803409,23.29253277,145.6,145.58,18.03584362]
[1750357805336,23.29253277,145.6,145.58,6.86907542]
[1750357806630,26.0,145.59,145.58,6.86907542]
[1750357806825,37.1667682,145.59,145.56,6.86986481]
[1750357807121,11.1667682,145.57,145.54,6.8709633]
[1750357807317,26.0,145.59,145.54,6.8709633]
[1750357807502,11.1667682,145.57,145.54,6.8709633]
[1750357809124,26.0,145.58,145.54,6.8709633]
[1750357809305,37.1667682,145.58,145.54,18.0377315]
[1750357810329,37.1667682,145.58,145.54,35.21513977]
[1750357810531,37.1667682,145.58,145.54,24.04837157]
[1750357810835,11.1667682,145.57,145.54,24.04837157]
[1750357812331,11.1667682,145.57,145.54,111.74837157]
[1750357812528,37.1667682,145.58,145.54,111.74837157]
[1750357812733,37.1667682,145.58,145.54,24.04837157]
[1750357813141,37.1667682,145.58,145.54,35.21513977]
[1750357815337,26.0,145.58,145.54,35.21513977]
[1750357815543,26.0,145.58,145.55,11.1667682]
[1750357815934,26.0,145.58,145.54,24.04837157]
[1750357816134,37.1667682,145.58,145.54,35.21513977]
[1750357818033,37.1667682,145.58,145.54,122.91513977]
[1750357818639,26.0,145.58,145.54,122.91513977]
[1750357819348,12.6893682,145.62,145.57,11.1667682]
[1750357819645,1.5226,145.62,145.59,11.1667682]
[1750357819848,26.0,145.6,145.57,87.7]
[1750357820062,1.5226,145.62,145.59,11.1667682]
[1750357820264,8.2355,145.65,145.6,11.1667682]
[1750357820451,11.1667682,145.64,145.6,11.1667682]
[1750357820650,19.4022682,145.65,145.6,11.1667682]
[1750357820829,19.4022682,145.65,145.61,11.1667682]
[1750357821029,26.0,145.63,145.61,11.1667682]
[1750357821456,26.0,145.63,145.62,6.86718857]
[1750357822249,26.0,145.63,145.62,18.03395677]
[1750357822532,26.0,145.63,145.62,6.86718857]
[1750357823983,1.5897,145.69,145.62,122.9019282]
[1750357824154,12.7564682,145.69,145.65,11.1667682]
[1750357824353,12.7564682,145.69,145.65,98.8667682]
[1750357824657,26.0,145.66,145.65,98.8667682]
[1750357825048,27.5897,145.69,145.65,98.8667682]
[1750357825252,38.7564682,145.69,145.65,98.8667682]
[1750357825634,38.7564682,145.69,145.66,6.86530275]
[1750357825635,26.0,145.67,145.66,6.86530275]
[1750357825834,11.1667682,145.67,145.65,87.7]
[1750357826068,11.1667682,145.66,145.65,94.56571989]
[1750357826265,37.1667682,145.67,145.65,94.56571989]
[1750357827142,11.1667682,145.66,145.65,94.56571989]
[1750357827343,37.1667682,145.67,145.65,94.56571989]
[1750357827949,26.0,145.67,145.65,94.56571989]
[1750357829369,26.0,145.67,145.65,105.73248809]
[1750357830071,26.0,145.67,145.66,11.1667682]
[1750357830753,27.5897,145.69,145.66,11.1667682]
[1750357830950,26.0,145.68,145.67,11.1667682]
[1750357831150,37.1667682,145.71,145.67,11.1667682]
[1750357831847,11.1667682,145.71,145.67,11.1667682]
[1750357832049,11.1667682,145.71,145.68,6.86436024]
[1750357832248,26.0,145.69,145.68,6.86436024]
[1750357834464,26.0,145.69,145.67,6.86483146]
[1750357834964,26.0,145.69,145.67,18.03159966]
[1750357835959,26.0,145.69,145.67,105.73159966]
[1750357836163,11.1667682,145.71,145.67,111.72691013]
[1750357836471,11.1667682,145.71,145.67,122.89367833]
[1750357836666,37.1667682,145.72,145.68,11.1667682]
[1750357836845,26.0,145.72,145.68,98.8667682]
[1750357837551,37.1667682,145.72,145.68,98.8667682]
[1750357838253,37.1667682,145.72,145.68,87.7]
[1750357838446,26.0,145.7,145.69,6.86388907]
[1750357838654,26.0,145.7,145.69,94.56388907]
[1750357839160,38.6669682,145.73,145.69,94.56388907]
[1750357839465,38.6669682,145.73,145.69,105.73065727]
[1750357840557,38.6669682,145.73,145.69,94.56388907]
[1750357841146,27.5002,145.73,145.69,122.89037996]
[1750357841346,1.5002,145.73,145.7,11.1667682]
[1750357842657,26.0,145.72,145.71,6.86294694]
[1750357843557,1.5673,145.77,145.71,35.18708251]
[1750357843746,12.7340682,145.77,145.73,11.1667682]
[1750357843947,27.5673,145.77,145.73,11.1667682]
[1750357844262,27.5673,145.77,145.74,11.1667682]
[1750357844471,1.5673,145.77,145.75,6.86106346]
[1750357844856,26.0,145.78,145.75,18.02783166]
[1750357845067,11.1667682,145.79,145.75,18.02783166]
[1750357845568,37.1667682,145.8,145.76,11.1667682]
[1750357846352,11.1667682,145.78,145.75,6.86106346]
[1750357846755,11.1667682,145.83,145.77,11.1667682]
[1750357846988,11.1667682,145.83,145.79,11.1667682]
[1750357847976,1.5364,145.85,145.8,11.1667682]
[1750357848163,1.5364,145.85,145.76,46.54964886]
[1750357848164,11.1667682,145.82,145.78,11.1667682]
[1750357848557,11.1667682,145.82,145.79,6.85918101]
[1750357849263,37.1667682,145.82,145.79,6.85918101]
[1750357851088,26.0,145.83,145.77,6.85995512]
[1750357851291,11.1667682,145.81,145.77,18.02672332]
[1750357851792,37.1667682,145.82,145.78,11.1667682]
[1750357852773,37.1667682,145.82,145.77,25.50960398]
[1750357852975,37.1667682,145.82,145.79,6.85918101]
[1750357854018,26.0,145.82,145.79,6.85918101]
[1750357854187,37.1667682,145.82,145.79,6.85918101]
[1750357857586,11.1667682,145.81,145.79,6.85918101]
[1750357859801,11.1667682,145.81,145.78,6.85965152]
[1750357860601,26.0,145.82,145.78,6.85965152]
[1750357860776,11.1667682,145.81,145.78,6.85965152]
[1750357861299,26.0,145.82,145.78,18.02641972]
[1750357861487,11.1667682,145.81,145.78,6.85965152]
[1750357862489,11.1667682,145.8,145.78,6.85965152]
[1750357862683,11.1667682,145.81,145.78,6.85965152]
[1750357863309,5.0743449,145.84,145.81,18.64964886]
[1750357863607,1.6371,145.93,145.84,18.64964886]
[1750357863775,12.8038682,145.93,145.86,18.64964886]
[1750357863981,11.1667682,145.94,145.86,24.96264886]
[1750357864306,11.1667682,145.94,145.9,11.1667682]
[1750357864975,11.1667682,145.91,145.82,6.6374]
[1750357865180,37.1667682,145.88,145.8,18.64964886]
[1750357865495,11.1667682,145.85,145.81,24.0038406]
[1750357866402,11.1667682,145.85,145.81,35.1706088]
[1750357866900,11.1667682,145.85,145.81,24.0038406]
[1750357868198,11.1667682,145.83,145.81,6.85824017]
[1750357868503,11.1667682,145.83,145.81,94.55824017]
[1750357868677,11.1667682,145.83,145.81,87.7]
[1750357868884,11.1667682,145.82,145.81,87.7]
[1750357869106,11.1667682,145.82,145.8,6.85856909]
[1750357869303,26.0,145.84,145.8,6.85856909]
[1750357869487,11.1667682,145.82,145.8,6.85856909]
[1750357869687,11.1667682,145.82,145.79,6.85918101]